[Event "5th Sharjah Masters 2022"]
[Site "Sharjah"]
[Date "2022.05.24"]
[Round "4.2"]
[White "Idani, Pouya"]
[Black "Salem, A.R. Saleh"]
[Result "0-1"]
[ECO "C88"]
[WhiteElo "2635"]
[BlackElo "2690"]
[Annotator "TA"]
[PlyCount "110"]
[EventDate "2022.05.21"]
[EventType "swiss"]
[EventCountry "UAE"]
[SourceTitle "playchess.com"]
[Source "ChessBase"]
[SourceQuality "1"]
[TimeControl "5400+30"]

{[%evp 20,110,15,24,13,21,24,1,6,-6,-9,-10,-6,-4,-3,-52,-41,-38,-27,-41,-52,-31,-34,-29,-32,-132,-141,-241,-250,-251,-237,-247,-239,-229,-226,-266,-253,-233,-243,-261,-247,-223,-231,-225,-206,-201,-199,-188,0,-203,-202,-239,-234,-240,-254,-233,-245,-243,-237,-214,-231,-284,-295,-295,-299,-373,-377,-358,-335,-419,-404,-421,-409,-487,-431,-444,-432,-405,-345,-447,-451,-451,-456,-620,-500,-491,-489,-797,-773,-1047,-981,-1661,-1541]} 1. e4 {[%emt 0:00:02]} e5 {[%emt 0:04:10]} 2. Nf3 {[%emt 0:00:07]} Nc6 {[%emt 0:00:02]} 3. Bb5 {[%emt 0:00:07]} a6 {[%emt 0:00:05]} 4. Ba4 {[%emt 0:00:14]} Nf6 {[%emt 0:00:06]} 5. O-O {[%emt 0:00:13]} Be7 {[%emt 0:00:10]} 6. Re1 {[%emt 0:01:36]} b5 {[%emt 0:00:41]} 7. Bb3 {[%emt 0:00:06]} O-O {[%emt 0:00:06]} 8. d4 {[%emt 0:05:10]} Nxd4 {[%emt 0:00:33]} 9. Bxf7+ {[%emt 0:01:35]} Rxf7 {[%emt 0:00:37]} 10. Nxe5 {[%emt 0:00:06]} Rf8 {[%emt 0:00:06]} 11. Qxd4 {[%emt 0:00:04]} c5 {[%emt 0:00:09] C88: Closed Ruy Lopez: Anti-Marshall Systems.} 12. Qd1 {[%emt 0:03:56]} Qc7 {[%emt 0:00:43]} 13. Nf3 {[%emt 0:02:23]} Bb7 {[%emt 0:00:34] The position is equal.} 14. Nc3 {[%emt 0:00:06]} b4 {[%emt 0:08:55]} 15. Nd5 {[%emt 0:00:06]} Nxd5 {[%emt 0:00:17]} 16. exd5 {[%emt 0:00:06]} Bf6 {[%emt 0:00:04] [#]} 17. Qd2 $146 {[%emt 0:17:43]} (17. Ng5 $11) ({Predecessor:} 17. Ng5 Qd6 18. Qd3 Bxg5 19. Bxg5 Qxd5 20. Qxd5+ Bxd5 21. Re5 Be6 22. Be7 Rf5 23. Rxc5 Rxc5 24. Bxc5 {½-½ (48) Milov,L (2463)-Braeuer,F (2429) Germany 2019}) 17... Rae8 $36 {[%emt 0:09:05][%mdl 2048] Black is pushing.} 18. Rd1 {[%emt 0:02:13]} a5 {[%emt 0:05:10]} 19. c4 {[%emt 0:06:20]} bxc3 {[%emt 0:00:59]} 20. bxc3 {[%emt 0:00:05]} Ba6 {[%emt 0:01:09] Against Qd3} 21. d6 {[%emt 0:15:36]} Qc6 {[%emt 0:04:29] Strongly threatening ...Be2.} 22. Ba3 {[%emt 0:03:06]} (22. Re1 $1 $15) 22... Re2 $1 $17 {[%emt 0:12:48]} 23. Qd5+ {[%emt 0:01:49]} (23. Qc1 $17 {is the only way for White.}) 23... Qxd5 $19 {[%emt 0:00:07]} 24. Rxd5 {[%emt 0:00:03]} Bxc3 {[%emt 0:12:26]} 25. Rb1 {[%emt 0:04:59]} c4 {[%emt 0:09:30]} ({Weaker is} 25... Rxa2 26. Bxc5 Bb7 27. Rdd1) 26. Rc1 {[%emt 0:01:01]} Bb7 {[%emt 0:03:46]} 27. Rdd1 {[%emt 0:08:00] [#]} Bf6 {[%emt 0:00:45] This bishop pair is nice.} ({And not} 27... Bxf3 28. Rxc3 Bh5 29. Bc5 $17) 28. Rxc4 {[%emt 0:02:09]} Rxa2 {[%emt 0:00:06]} 29. Bc1 {[%emt 0:01:13]} Ra1 {[%emt 0:04:46]} 30. Nd4 {[%emt 0:02:16]} Rb1 {[%emt 0:10:14] Against Nb3} 31. Nc2 {[%emt 0:03:02]} Bc6 {[%emt 0:00:11][%cal Of6g5]} 32. Na3 {[%emt 0:01:43]} Ra1 {[%emt 0:00:07][%cal Of6b2] And now ...Bb2! would win.} 33. Nc2 {[%emt 0:01:22]} Rb1 {[%emt 0:00:19]} 34. Na3 {[%emt 0:00:04]} Rb3 {[%emt 0:00:13]} 35. h3 {[%emt 0:02:06]} Rfb8 {[%emt 0:04:56]} 36. Nc2 {[%emt 0:03:12]} Rb1 {[%emt 0:00:02]} 37. Na3 {[%emt 0:02:42]} Ra1 {[%emt 0:00:06] White must now prevent ...Bb2.} 38. Nc2 {[%emt 0:04:31]} Ra4 {[%emt 0:00:13]} 39. Rc5 {[%emt 0:00:27] [#]} Rb1 $1 {[%emt 0:00:25]} 40. Rf1 {[%emt 0:00:32]} Rb5 {[%emt 0:06:21]} 41. Rxb5 {[%emt 0:00:30]} Bxb5 {[%emt 0:00:02]} 42. Re1 {[%emt 0:01:31]} Ra2 {[%emt 0:00:24]} 43. Na3 {[%emt 0:00:29]} Be2 {[%emt 0:00:59]} 44. Nb1 {[%emt 0:01:25]} Bd3 {[%emt 0:00:08]} 45. Nd2 {[%emt 0:00:40]} a4 {[%emt 0:00:24]} 46. g4 {[%emt 0:03:10]} Rc2 {[%emt 0:02:36] ...Bc3 is the strong threat.} 47. Nf3 {[%emt 0:00:24]} Be2 {[%emt 0:01:17]} 48. Kg2 {[%emt 0:01:30]} h6 {[%emt 0:01:02]} 49. Nd2 {[%emt 0:01:40]} Bb5 {[%emt 0:00:36] Black is clearly winning.} 50. Nb1 {[%emt 0:01:03]} Bc6+ {[%emt 0:01:07]} 51. Kg3 {[%emt 0:00:44]} Bd4 {[%emt 0:00:15]} 52. Be3 {[%emt 0:00:32]} Bb2 {[%emt 0:00:09]} 53. Nd2 {[%emt 0:00:33]} (53. g5 $142) 53... a3 {[%emt 0:00:30]} 54. Nb3 {[%emt 0:00:12]} Be5+ {[%emt 0:00:56]} 55. f4 {[%emt 0:00:49] [#]} g5 $1 {[%emt 0:00:39] Weighted Error Value: White=0.45/Black=0.11 (very precise)} 0-1

[Event "5th Sharjah Masters 2022"]
[Site "Sharjah"]
[Date "2022.05.24"]
[Round "4.3"]
[White "Yilmaz, Mustafa"]
[Black "Sarana, Alexey"]
[Result "1-0"]
[ECO "D38"]
[WhiteElo "2631"]
[BlackElo "2675"]
[Annotator "TA"]
[PlyCount "109"]
[EventDate "2022.05.21"]
[EventType "swiss"]
[EventCountry "UAE"]
[SourceTitle "playchess.com"]
[Source "ChessBase"]
[SourceQuality "1"]
[TimeControl "5400+30"]

{[%evp 11,109,13,14,6,20,11,6,12,21,10,13,14,24,8,20,6,16,9,41,20,18,20,22,15,16,27,17,22,31,32,33,0,38,32,56,66,52,28,44,50,48,37,48,0,0,0,44,32,29,15,43,54,56,43,117,117,120,121,125,125,125,127,128,131,149,149,142,139,139,132,358,359,359,359,377,365,359,365,605,625,628,604,591,594,755,754,812,416,416,416,416,416,1849,2931,1963,1762,29977,29978,29967,29964]} 1. d4 {[%emt 0:00:03]} Nf6 {[%emt 0:00:10]} 2. c4 {[%emt 0:00:05]} e6 {[%emt 0:00:04]} 3. Nf3 {[%emt 0:00:04]} d5 {[%emt 0:00:19]} 4. Nc3 {[%emt 0:00:06]} Bb4 {[%emt 0:00:16]} 5. Qa4+ {[%emt 0:00:06]} Nc6 {[%emt 0:00:07]} 6. e3 {[%emt 0:00:04]} O-O {[%emt 0:00:17]} 7. Qc2 {[%emt 0:00:07] D38: Queen's Gambit Declined: Ragozin Defence (4 Nf3 Bb4).} Re8 {[%emt 0:00:23]} 8. Bd2 {[%emt 0:00:38]} Bf8 {[%emt 0:00:19] 8...Bf8 scores better than 8...a6.} 9. Be2 {[%emt 0:01:22] The position is equal.} Nb4 {[%emt 0:01:21]} 10. Qb1 {[%emt 0:00:07]} dxc4 {[%emt 0:00:25]} 11. Bxc4 {[%emt 0:00:11]} b6 {[%emt 0:00:19]} 12. O-O {[%emt 0:00:25]} Bb7 {[%emt 0:05:38]} 13. Rd1 {[%emt 0:01:06] [#]} c5 $146 {[%emt 0:03:28]} ({Predecessor:} 13... Qc8 14. a3 Nbd5 15. Bd3 c5 16. dxc5 Qxc5 17. Nxd5 Qxd5 18. Bc3 Qh5 19. Bxf6 Bxf3 20. gxf3 gxf6 {½-½ (33) Carlsen,M (2863)-Ding,L (2791) chess24.com INT 2020}) 14. dxc5 {[%emt 0:10:38]} bxc5 {[%emt 0:02:14]} 15. a3 {[%emt 0:12:39]} Nc6 {[%emt 0:01:21]} 16. Bd3 {[%emt 0:04:25]} h6 {[%emt 0:12:18]} 17. Ne4 {[%emt 0:09:35]} Nxe4 {[%emt 0:00:18]} 18. Bxe4 {[%emt 0:00:02]} Qb6 {[%emt 0:00:14]} 19. Bc3 {[%emt 0:02:11]} Red8 {[%emt 0:00:18]} 20. Qc2 {[%emt 0:04:24]} Rac8 {[%emt 0:00:52]} 21. Qa4 {[%emt 0:05:01]} Rxd1+ {[%emt 0:17:25]} (21... Nd4 $5) 22. Rxd1 {[%emt 0:02:15]} Rd8 {[%emt 0:00:05]} 23. Rxd8 {[%emt 0:04:07]} Nxd8 {[%emt 0:00:55]} 24. Bxb7 {[%emt 0:02:59]} Qxb7 {[%emt 0:00:02]} 25. Ne5 {[%emt 0:01:52]} f6 {[%emt 0:02:55]} 26. Ng6 {[%emt 0:06:38]} Kf7 {[%emt 0:00:55] [#]} 27. Nh8+ {[%emt 0:03:29]} (27. h4 $1 $14) 27... Kg8 $11 {[%emt 0:00:08]} 28. Ng6 {[%emt 0:00:06]} Kf7 {[%emt 0:00:05]} 29. Nxf8 {[%emt 0:04:28]} (29. Nf4 {seems wilder.} Bd6 30. Nh5 Kf8 31. h4) 29... Kxf8 $14 {[%emt 0:00:02][%mdl 4096] Endgame KQB-KQN} 30. h3 {[%emt 0:04:09]} a6 {[%emt 0:01:34]} 31. Qa5 $36 {[%emt 0:01:10][%mdl 2048] White has good play.} Qc8 {[%emt 0:01:22]} 32. Qb6 {[%emt 0:01:11]} Ke8 {[%emt 0:01:18]} (32... Kg8 $14) 33. Qa7 $16 {[%emt 0:02:43] White is more active.} Kf8 {[%emt 0:14:46]} 34. Ba5 {[%emt 0:00:32]} Nf7 {[%emt 0:00:08]} 35. Bc7 {[%emt 0:00:10]} c4 {[%emt 0:01:31]} 36. Qc5+ {[%emt 0:01:43]} Kg8 {[%emt 0:00:59][%cal Of7e5]} 37. Qxc4 {[%emt 0:02:03]} Nd6 {[%emt 0:00:24] [#]} 38. Qc5 {[%emt 0:00:29]} Nb5 {[%emt 0:00:18]} 39. Bb6 {[%emt 0:00:23]} Qd7 {[%emt 0:00:05]} 40. Qc2 {[%emt 0:01:39]} Qd5 $2 {[%emt 0:00:18] This costs Black the game.} (40... Qb7 $16) 41. Qc8+ $18 {[%emt 0:02:14]} Kh7 {[%emt 0:00:26] And now ...Qd1+ would win.} 42. Qxa6 {[%emt 0:01:38]} Qb3 {[%emt 0:00:32]} 43. a4 {[%emt 0:02:53][%cal Ba3a4,Ba4a5,Ba5a6,Ba6a7][%mdl 32]} Nd6 {[%emt 0:00:42]} 44. Bd4 {[%emt 0:02:02]} Ne4 {[%emt 0:34:54]} (44... Qd1+ 45. Kh2 Ne4 46. Qxe6 Nd2 47. Qf5+ Kh8) 45. a5 {[%emt 0:02:22]} ({Less strong is} 45. f3 e5 $18) 45... Qc2 {[%emt 0:00:00]} 46. Qf1 {[%emt 0:00:14] Black must now prevent a6.} e5 {[%emt 0:00:00]} 47. Bc3 {[%emt 0:00:39]} h5 {[%emt 0:00:00]} 48. a6 {[%emt 0:03:55]} Kh6 {[%emt 0:00:00]} 49. Ba5 {[%emt 0:00:45]} Qxb2 {[%emt 0:00:00]} 50. a7 {[%emt 0:00:43]} Qb7 {[%emt 0:00:00]} 51. Bb6 {[%emt 0:00:08]} h4 {[%emt 0:00:00] [#]} (51... Nd6 $142 52. Qa1 Qa8) 52. Qa1 $1 {[%emt 0:00:32]} Qa8 {[%emt 0:00:00]} 53. Qa4 {[%emt 0:00:42]} g5 {[%emt 0:00:00]} 54. Qd7 {[%emt 0:00:31]} Kg6 {[%emt 0:00:00]} 55. Qd8 {[%emt 0:01:12] Weighted Error Value: White=0.15 (very precise) /Black=0.33} 1-0

[Event "5th Sharjah Masters 2022"]
[Site "Sharjah"]
[Date "2022.05.24"]
[Round "4.4"]
[White "Deac, Bogdan-Daniel"]
[Black "Muradli, Mahammad"]
[Result "1-0"]
[ECO "D24"]
[WhiteElo "2671"]
[BlackElo "2539"]
[Annotator "TA"]
[PlyCount "134"]
[EventDate "2022.05.21"]
[EventType "swiss"]
[EventCountry "UAE"]
[SourceTitle "playchess.com"]
[Source "ChessBase"]
[SourceQuality "1"]
[TimeControl "5400+30"]

{[%evp 9,134,7,50,39,38,41,39,35,46,32,46,21,13,18,38,18,37,23,33,21,21,21,28,26,28,21,33,18,27,44,34,30,18,24,29,44,35,35,52,42,46,26,54,48,29,35,35,30,53,58,80,24,27,0,0,0,10,0,45,0,0,0,0,0,0,0,12,0,0,0,25,27,23,21,58,65,72,71,86,71,71,71,71,71,71,0,0,0,70,0,0,0,70,7,67,45,58,59,70,93,102,15,16,16,33,8,8,8,70,21,22,23,80,70,70,70,70,16,49,47,661,578,640,604,991,1005,1643]} 1. d4 {[%emt 0:00:02]} d5 {[%emt 0:00:39]} 2. c4 {[%emt 0:00:12]} e6 {[%emt 0:00:06]} 3. Nf3 {[%emt 0:00:24]} Nf6 {[%emt 0:00:36]} 4. Nc3 {[%emt 0:00:12]} dxc4 {[%emt 0:00:12]} 5. e4 {[%emt 0:03:25][%cal Be2e4,Be4e5][%mdl 32]} b5 {[%emt 0:00:17]} 6. e5 {[%emt 0:00:27] D24: Queen's Gambit Accepted: 3 Nf3 Nf6 4 Nc3.} Nd5 {[%emt 0:00:07]} 7. Nxb5 {[%emt 0:00:06]} Nb6 {[%emt 0:00:09]} 8. Be2 {[%emt 0:00:34] White is slightly better.} Nc6 {[%emt 0:00:19][%cal Bb8c6,Bc6a5,Ba5b3,Bb3c5,Bc5a4][%mdl 32] 8...Nc6 scores better than 8...Be7.} 9. Be3 {[%emt 0:01:14]} Be7 {[%emt 0:02:14]} 10. a3 {[%emt 0:01:50]} Rb8 {[%emt 0:06:48]} 11. Qc2 {[%emt 0:04:38]} Qd7 {[%emt 0:08:29]} 12. Nc3 {[%emt 0:07:38]} Bb7 {[%emt 0:04:58]} 13. Rd1 {[%emt 0:05:10][%cal Od4d5]} Na5 {[%emt 0:02:02]} 14. h4 {[%emt 0:01:04]} Bc6 {[%emt 0:09:40]} 15. Rh3 {[%emt 0:05:28] [#]} Ba4 $146 {[%emt 0:09:53]} ({Predecessor:} 15... h6 16. Rg3 g6 17. d5 Bxd5 18. Nxd5 Nxd5 19. Bxa7 Rb7 20. Bd4 Qc6 21. Rg4 h5 {1-0 (55) Yilmaz,M (2624)-Bogner,S (2574) Sharjah 2021}) 16. Nxa4 {[%emt 0:00:22]} Qxa4 {[%emt 0:00:13]} 17. Qc1 {[%emt 0:13:11]} Nb3 {[%emt 0:10:09]} 18. Qc3 {[%emt 0:00:09]} Nd5 {[%emt 0:00:40] Pair of Knights!} 19. Qc2 {[%emt 0:00:40]} c3 {[%emt 0:03:11]} 20. bxc3 {[%emt 0:00:42] Rb1 is the strong threat.} Nc5 {[%emt 0:01:35]} 21. Qxa4+ {[%emt 0:12:29]} Nxa4 {[%emt 0:00:10]} 22. c4 {[%emt 0:00:08]} Nxe3 {[%emt 0:11:39]} 23. fxe3 {[%emt 0:00:27]} Nc3 {[%emt 0:05:19]} 24. Rd3 {[%emt 0:02:51]} Rb1+ {[%emt 0:09:16]} 25. Kd2 {[%emt 0:02:05]} Rb2+ {[%emt 0:00:06]} 26. Kxc3 {[%emt 0:01:09]} Rxe2 {[%emt 0:00:03]} 27. c5 {[%emt 0:15:25]} Rxg2 {[%emt 0:00:38]} 28. h5 {[%emt 0:03:36]} Kd7 {[%emt 0:03:55]} 29. Rd2 {[%emt 0:02:31]} Rg4 {[%emt 0:00:02]} 30. Rb2 {[%emt 0:01:11]} (30. h6 $16) 30... f5 $11 {[%emt 0:01:38]} 31. exf6 {[%emt 0:06:59]} (31. Kd3 {with more complications.} Kc6 32. Rb1 Rg8 33. Nd2) 31... gxf6 {[%emt 0:00:02]} 32. Kd3 {[%emt 0:03:35]} Rhg8 {[%emt 0:03:50]} 33. Rb7 {[%emt 0:01:02]} Rg2 {[%emt 0:03:28]} 34. Nd2 {[%emt 0:04:39]} (34. Rxa7 $5 {[%cal Rh3h1]} Rb2 35. Ne1 $14) 34... Kc6 {[%emt 0:03:04]} 35. Rxa7 {[%emt 0:01:39] Black must now prevent Ra6+.} Bxc5 $1 {[%emt 0:00:07]} 36. Ra5 {[%emt 0:00:18]} Be7 {[%emt 0:00:34]} (36... Bb6 $5 37. Ra4 Rg1 $11) 37. Rh1 {[%emt 0:00:54]} R8g5 {[%emt 0:02:12]} 38. Ra8 {[%emt 0:00:31]} Rb5 {[%emt 0:00:30]} 39. Re8 {[%emt 0:00:25]} Rb2 {[%emt 0:00:38]} (39... Kd7 $5 {[%cal Rd7e8]} 40. Rh8 e5 $14) 40. Rd1 {[%emt 0:00:31]} Kd7 {[%emt 0:00:15]} 41. Rh8 {[%emt 0:00:05]} Bxa3 {[%emt 0:00:45]} 42. Rxh7+ {[%emt 0:00:25]} Kc6 {[%emt 0:00:02]} 43. Nc4 {[%emt 0:01:03][%csl LRa3,LRb2]} Rb3+ {[%emt 0:00:47]} 44. Ke4 {[%emt 0:00:05]} Bb4 {[%emt 0:00:28] Against Na5+} 45. Rc1 {[%emt 0:00:50] Dancing on a razor blade. White is more active.} Kb7 {[%emt 0:00:41]} 46. Kf3 {[%emt 0:00:36] Inhibits Rg4.} Rg5 {[%emt 0:00:22]} 47. Ke2 {[%emt 0:00:31]} Rg2+ {[%emt 0:00:36]} 48. Kf3 {[%emt 0:00:17]} Rg5 {[%emt 0:00:01]} 49. Ke2 {[%emt 0:00:40]} (49. Kf4 $14) 49... Rg2+ {[%emt 0:00:58]} 50. Kf3 {[%emt 0:00:13]} (50. Kf1 $11 Rh2 51. Kg1) 50... Rg5 $1 $14 {[%emt 0:00:06]} 51. Rc2 {[%emt 0:00:12]} (51. Kf4 $14) 51... Kb8 {[%emt 0:00:59]} ({Black should play} 51... Rf5+ $11 52. Ke2 Rg5 53. Rc1) 52. Rb2 {[%emt 0:00:44]} Rxb2 {[%emt 0:01:02]} 53. Nxb2 {[%emt 0:00:03][%mdl 4096] Endgame KRB-KRN} Kb7 {[%emt 0:00:00]} 54. Nd3 {[%emt 0:01:01]} Bd6 {[%emt 0:00:22]} 55. Rh6 {[%emt 0:00:39]} (55. Nf4 $16) 55... e5 {[%emt 0:00:36]} 56. dxe5 {[%emt 0:00:39]} Bxe5 {[%emt 0:00:26]} 57. Rh7 {[%emt 0:00:33] White wants to play h6.} Bd6 {[%emt 0:00:32]} 58. Nf4 {[%emt 0:00:24]} Rg1 {[%emt 0:00:32]} (58... Kc6 $11) 59. h6 {[%emt 0:00:34]} (59. Ke4 $14) 59... Rh1 $11 {[%emt 0:00:25]} 60. Kg4 {[%emt 0:00:30]} Bc5 {[%emt 0:00:35]} (60... Bf8 $1 $11) 61. Nd5 {[%emt 0:00:28]} Kc6 {[%emt 0:00:31]} 62. e4 {[%emt 0:00:11]} ({Don't play} 62. Nxf6 Bxe3 63. Nh5 Bd2 $11) 62... Kd6 {[%emt 0:00:26]} 63. Rh8 {[%emt 0:00:40]} ({Reject} 63. Rxc7 Rxh6 64. Rg7 Ke5 $11) ({Much worse is} 63. Nxc7 Ke5 $11) ({White should try} 63. Ne7 $14 Ke5 64. Nf5) 63... Bd4 {[%emt 0:00:26][%cal Of6f5]} 64. Kf5 {[%emt 0:00:15] And now h7 would win.} Rf1+ $2 {[%emt 0:00:35][%mdl 8192] [#] Black cannot hold the game after this.} (64... c6 $14) 65. Kg6 $1 $18 {[%emt 0:00:06] aiming for Rd8+. White is clearly winning.} Rg1+ {[%emt 0:00:21] [#]} 66. Kf7 $1 {[%emt 0:00:12] Strongly threatening Rd8+.} Rh1 {[%emt 0:00:42][%cal Of6f5]} 67. Nxf6 {[%emt 0:01:39]} Bxf6 {[%emt 0:01:01] Weighted Error Value: White=0.13 (very precise) /Black=0.11 (very precise)} 1-0

[Event "5th Sharjah Masters 2022"]
[Site "Sharjah"]
[Date "2022.05.24"]
[Round "4.5"]
[White "Sindarov, Javokhir"]
[Black "Tabatabaei, M. Amin"]
[Result "1/2-1/2"]
[ECO "C50"]
[WhiteElo "2609"]
[BlackElo "2650"]
[Annotator "TA"]
[PlyCount "63"]
[EventDate "2022.05.21"]
[EventType "swiss"]
[EventCountry "UAE"]
[SourceTitle "playchess.com"]
[Source "ChessBase"]
[SourceQuality "1"]
[TimeControl "5400+30"]

{[%evp 10,63,4,8,15,16,27,26,14,18,26,0,0,0,0,0,0,0,0,-21,0,-16,-17,-59,0,0,0,0,0,0,0,0,0,0,12,7,7,6,41,34,34,34,34,41,118,114,153,143,143,143,150,-13,-13,-13,-13,-13]} 1. e4 {[%emt 0:00:03]} e5 {[%emt 0:00:06]} 2. Nf3 {[%emt 0:00:46]} Nc6 {[%emt 0:00:12]} 3. Bc4 {[%emt 0:00:17]} Nf6 {[%emt 0:00:11]} 4. d3 {[%emt 0:00:04][%cal Bd2d3,Bd3d4][%mdl 32]} Bc5 {[%emt 0:00:07]} 5. Nc3 {[%emt 0:02:01]} h6 {[%emt 0:00:46]} 6. O-O {[%emt 0:00:43]} a6 {[%emt 0:01:30] Recently 6...0-0 got a lot of attention. C50: Hungarian Defence and Giuoco Pianissimo.} 7. Be3 {[%emt 0:04:48]} Bxe3 {[%emt 0:02:20]} 8. fxe3 {[%emt 1:25:48]} d6 {[%emt 0:00:14] White has an edge.} 9. d4 {[%emt 0:00:00]} O-O {[%emt 0:01:22]} 10. h3 {[%emt 0:00:00]} b5 {[%emt 0:03:21]} 11. Bd3 {[%emt 0:00:00]} Bb7 {[%emt 0:02:26]} 12. a3 {[%emt 0:00:00]} Re8 {[%emt 0:01:42] [#]} 13. d5 $146 {[%emt 0:00:00]} ({Predecessor:} 13. Qe1 Ne7 14. dxe5 dxe5 15. Nxe5 Qd6 16. Nf3 Ng6 17. Rd1 Qb6 18. Nd4 Rad8 19. Qf2 {½-½ (40) Kozak,A (2516)-Erdos,V (2619) Mamaia 2021}) 13... Nb8 {[%emt 0:00:45]} 14. b4 {[%emt 0:00:00][%cal Bb2b4,Bb4b5][%mdl 32]} Nbd7 {[%emt 0:04:18]} 15. a4 {[%emt 0:00:00]} bxa4 {[%emt 0:07:21]} 16. Nd2 {[%emt 0:00:00]} c5 {[%emt 0:06:36]} (16... c6 $15) 17. b5 {[%emt 0:00:00]} Qa5 {[%emt 0:09:30]} 18. Ra3 {[%emt 0:00:00]} Nb6 {[%emt 0:02:04][%cal Oc5c4]} 19. Qa1 $1 {[%emt 0:00:00]} c4 {[%emt 0:21:26]} 20. Nxc4 {[%emt 0:00:00]} Nxc4 {[%emt 0:00:02]} 21. Bxc4 {[%emt 0:00:00] [#] Strongly threatening bxa6.} axb5 {[%emt 0:00:40]} 22. Bxb5 {[%emt 0:00:00]} Rec8 {[%emt 0:00:12][%cal Oc8c3]} 23. Bd3 {[%emt 0:00:41]} Ba6 {[%emt 0:07:11]} 24. Rxa4 {[%emt 0:01:07]} Qxc3 {[%emt 0:00:07]} 25. Qxc3 {[%emt 0:00:02]} Rxc3 {[%emt 0:00:07]} 26. Rfa1 $1 {[%emt 0:00:02]} Nd7 {[%emt 0:21:16]} 27. Rxa6 $16 {[%emt 0:00:22]} Rxa6 {[%emt 0:00:04]} 28. Rxa6 {[%emt 0:00:05]} Nc5 {[%emt 0:00:04]} 29. Rxd6 {[%emt 0:03:25]} Nxd3 {[%emt 0:00:01]} 30. Rc6 $2 {[%emt 0:01:06] [#]} ({Better is} 30. Rd8+ $16 Kh7 31. cxd3) 30... Nc1 $1 $11 {[%emt 0:02:25]} 31. Kf1 {[%emt 0:02:00] Inhibits Ne2.} Na2 {[%emt 0:00:42] Threatens to win with ...Kf8.} ({Resist} 31... Rxe3 32. d6 Nd3 33. Kg1 (33. cxd3 Rxd3 34. Ke2 Rd4 $11) 33... Re1+ 34. Kh2 $16) 32. Ra6 $1 {[%emt 0:00:04] Weighted Error Value: White=0.18 (very precise) /Black=0.08 (flawless)} 1/2-1/2